fUST/lending_fUST_20240404
["ID","MTS","AMOUNT","RATE_DAILY","PERIOD"]
[321428904,1712183136144,902.0,0.00044035,30]
[321428905,1712183146762,902.0,0.00044035,30]
[321428906,1712183157414,902.0,0.00044035,30]
[321428907,1712183168094,902.0,0.00044035,30]
[321428909,1712183178730,902.0,0.00043978,30]
[321428910,1712183189290,902.0,0.00043978,30]
[321428911,1712183200024,902.0,0.00043978,30]
[321428913,1712183210698,902.0,0.00043978,30]
[321428915,1712183221335,902.0,0.00043978,30]
[321428916,1712183231986,902.0,0.00043978,30]
[321428920,1712183242599,902.0,0.00043978,30]
[321428921,1712183253278,902.0,0.00043978,30]
[321428922,1712183263930,902.0,0.00043978,30]
[321428923,1712183274676,902.0,0.00043978,30]
[321428924,1712183285321,902.0,0.00043978,30]
[321428925,1712183295887,902.0,0.00043978,30]
[321428926,1712183306601,902.0,0.00043978,30]
[321428927,1712183317126,902.0,0.00043978,30]
[321428928,1712183327751,367.0,0.00044342,30]
[321428929,1712183338385,902.0,0.00044342,30]
[321428968,1712183432711,-155.00620025,0.00037146,2]
[321428969,1712183432721,-2110.69798225,0.00037147,2]
[321428970,1712183432731,-155.00620025,0.00037148,4]
[321428971,1712183432740,-2807.80898399,0.00037148,4]
[321428972,1712183432749,-2502.40248278,0.00037149,4]
[321428973,1712183432759,-400.0,0.0003715,2]
[321428974,1712183432768,-400.0,0.0003715,2]
[321428975,1712183432777,-155.03564394,0.00037151,2]
[321428976,1712183432786,-5636.41557595,0.00037156,4]
[321428977,1712183432796,-896.69578368,0.00037161,2]
[321428978,1712183432805,-169.545723,0.00037612,120]
[321428979,1712183432814,-171.45299542,0.00037783,2]
[321428980,1712183432823,-217.0,0.00038049,2]
[321428981,1712183432833,-24900.0,0.00038049,2]
[321428982,1712183432842,-169.753174,0.00038222,2]
[321428983,1712183432851,-2830.8177593,0.0003858,2]
[321428984,1712183432860,-231.28196175,0.00038917,15]
[321428985,1712183432869,-530.70307364,0.00038917,15]
[321428986,1712183432880,-379.82380626,0.00038917,15]
[321428987,1712183432890,-500.0,0.00038917,15]
[321428988,1712183432900,-1338.94205622,0.00038919,9]
[321428989,1712183432910,-633.83478918,0.00039019,2]
[321428990,1712183432920,-560.0,0.00039744,3]
[321428991,1712183432932,-288.12330176,0.000399,2]
[321428992,1712183432942,-11478.47488437,0.00039991,4]
[321428993,1712183432952,-214.75187961,0.00039999,31]
[321428994,1712183432964,-203.97890923,0.00039999,31]
[321428995,1712183432974,-168.9769983,0.0004,2]
[321428996,1712183432985,-1356.90137018,0.0004,2]
[321428997,1712183432994,-19263.29657281,0.0004,2]
[321428998,1712183433007,-4567.12572834,0.0004,2]
[321428999,1712183433017,-168.976997,0.0004,2]
[321429000,1712183433026,-161.052631,0.0004,2]
[321429001,1712183433035,-3561.02576608,0.0004,4]
[321429002,1712183433044,-6066.60691451,0.0004013,2]
[321429003,1712183433055,-169.671673,0.0004027,2]
[321429004,1712183433065,-6004.72124202,0.0004075,2]
[321429054,1712183441927,-988.26622425,0.0004075,2]
[321429055,1712183441940,-166.666666,0.00041096,2]
[321429056,1712183441950,-268.12445849,0.00041096,31]
[321429057,1712183441958,-288.12330175,0.00041822,2]
[321429058,1712183441969,-227.17794434,0.00041935,2]
[321429059,1712183441978,-166.666666,0.00042058,2]
[321429061,1712183441987,-400.0,0.0004252,3]
[321429062,1712183441997,-171.45299542,0.00042686,2]
[321429064,1712183442006,-166.666666,0.00043019,2]
[321429065,1712183442015,-288.12330175,0.00043744,2]
[321429066,1712183442025,-434.0,0.00043976,2]
[321429067,1712183442034,-7755.8807425,0.00043976,4]
[321429068,1712183442044,-4917.06204123,0.00043976,4]
[321429069,1712183442053,-2845.31390782,0.00043976,4]
[321429070,1712183442063,-2633.42118861,0.00043976,4]
[321429071,1712183442073,-3727.44802182,0.00043977,4]
[321429072,1712183442082,-4210.3358044,0.00043977,4]
[321429073,1712183442092,-1434.05626381,0.00043977,4]
[321429074,1712183442101,-166.666666,0.00043981,2]
[321429075,1712183442111,-2237.78380959,0.00044014,4]
[321429076,1712183442121,-155.18106974,0.00044014,4]
[321429077,1712183442130,-155.47199909,0.00044014,4]
[321429078,1712183442139,-313.56102031,0.00044014,4]
[321429079,1712183442148,-252.81959649,0.00044014,2]
[321429080,1712183442159,-235.44330989,0.00044014,4]
[321429081,1712183442168,-397.20277038,0.00044342,120]
[321429082,1712183442177,-4165.46039606,0.00044342,2]
[321429083,1712183442188,-13039.7904143,0.00044342,2]
[321429084,1712183442198,-3033.23044396,0.00044342,2]
[321429085,1712183442207,-13451.999999,0.00044342,2]
[321429086,1712183442216,-7204.24287107,0.00044342,2]
[321429087,1712183442226,-4009.95911609,0.00044342,2]
[321429088,1712183442236,-1003.69686541,0.00044342,2]
[321429089,1712183442247,-8063.18630405,0.0004456,2]
[321429090,1712183442257,-166.666666,0.00044942,2]
[321429091,1712183442269,-3055.996943,0.00045,60]
[321429092,1712183442279,-902.0,0.00045441,30]
[321429093,1712183442288,-288.12330175,0.00045666,2]
[321429094,1712183442297,-166.666666,0.00045904,2]
[321429095,1712183442309,-227.17794434,0.00046935,2]
[321429096,1712183442318,-11838.24764054,0.00047542,15]
[321429097,1712183442327,-171.45299542,0.00047588,2]
[321429098,1712183442336,-288.12330175,0.00047588,2]
[321429099,1712183442345,-19201.40323547,0.00047688,3]
[321429100,1712183442354,-1000.0,0.00047688,3]
[321429101,1712183442363,-22288.8320282,0.00047688,120]
[321429165,1712183632160,152.37295999,0.00044359,51]
[321429197,1712184631852,-1217.349999,0.00038836,30]
[321429199,1712184631862,-215.8893415,0.00039014,2]
[321429200,1712184631872,-208.074974,0.0003936,2]
[321429201,1712184631881,-169.545723,0.00039525,120]
[321429212,1712184631987,-175.09271,0.0004,2]
[321429214,1712184631997,-168.976997,0.0004,2]
[321429216,1712184632006,-1183.49404654,0.0004,4]
[321429260,1712184637901,-2377.53171954,0.0004,4]
[321429262,1712184637910,-374.26380697,0.00040009,2]
[321429468,1712184640027,-629.1278318,0.00040009,2]
[321429470,1712184640039,-598.0205773,0.00040009,2]
[321430075,1712184645961,-1159.26492803,0.00040009,2]
[321430077,1712184645971,-10779.6114998,0.00040672,2]
[321430079,1712184645980,-496.50346301,0.0004075,120]
[321430081,1712184645990,-18923.93875461,0.0004075,4]
[321430083,1712184645999,-1004.20654217,0.000408,10]
[321430085,1712184646007,-432.5919285,0.000409,2]
[321430087,1712184646016,-2000.0,0.00041,30]
[321430089,1712184646025,-2280.628602,0.0004101,30]
[321430091,1712184646035,-166.666666,0.00041096,2]
[321430093,1712184646047,-200.0,0.00041337,2]
[321430094,1712184646056,-1004.56025567,0.00041476,3]
[321430096,1712184646066,-166.666666,0.00042058,2]
[321430099,1712184646074,-432.59192849,0.00042572,2]
[321430100,1712184646084,-166.666666,0.00043019,2]
[321430103,1712184646093,-166.666666,0.00043981,2]
[321430105,1712184646103,-432.59192849,0.00044244,2]
[321430107,1712184646114,-2086.78704421,0.0004434,4]
[321430109,1712184646123,-155.54889196,0.0004434,2]
[321430111,1712184646132,-197.08085702,0.0004434,2]
[321430113,1712184646143,-169.671673,0.00044527,2]
[321430115,1712184646152,-166.666666,0.00044942,2]
[321430117,1712184646161,-166.666666,0.00045904,2]
[321430119,1712184646170,-432.59192849,0.00045916,2]
[321430121,1712184646178,-381.76500217,0.00046732,4]
[321430123,1712184646187,-153.0,0.00047409,2]
[321430125,1712184646197,-308.9314415,0.00047409,2]
[321430127,1712184646205,-306.0,0.00047409,2]
[321430129,1712184646214,-958.68355907,0.00047588,2]
[321430131,1712184646223,-432.59192849,0.00047588,2]
[321430133,1712184646231,-699.42066,0.00047686,4]
[321430135,1712184646240,-591.53307832,0.00047686,4]
[321430136,1712184646249,-157.50269185,0.00047686,4]
[321430139,1712184646258,-1212.054311,0.00047686,4]
[321430140,1712184646267,-309.81412391,0.00047686,2]
[321430142,1712184646280,-2632.57934,0.00047686,4]
[321430145,1712184646292,-171.54052707,0.00047686,4]
[321430147,1712184646301,-191.11607322,0.00047686,4]
[321430149,1712184646311,-313.56102031,0.00047686,4]
[321430151,1712184646319,-2617.34667618,0.00047686,120]
[321430153,1712184646330,-252.81959649,0.00047686,2]
[321430155,1712184646339,-198.17065663,0.00047686,7]
[321430157,1712184646350,-2497.20058872,0.00047687,4]
[321430159,1712184646359,-88997.90724656,0.00047688,120]
[321432955,1712184824088,289.62988646,0.00044359,30]
[321433146,1712185843113,-6374.77125537,0.0004,30]
[321433147,1712185843123,-580.03635986,0.00042159,8]
[321433148,1712185843132,-175.72598145,0.00042259,2]
[321433149,1712185843142,-151.54959155,0.000423,2]
[321433150,1712185843151,-1628.53748716,0.000424,120]
[321433151,1712185843160,-629.13342962,0.00044359,40]
[321433156,1712185880581,-3654.73753811,0.00028999,2]
[321433157,1712185880651,-74.58648037,0.00028999,2]
[321433158,1712185920111,-264.08986139,0.00028999,7]
[321433159,1712185920139,-190.71820277,0.00029,7]
[321433160,1712185920216,-9.28179723,0.00029,7]
[321433161,1712185946252,-1705.78591477,0.00028999,5]
[321433162,1712185946383,-34.81195744,0.00028999,5]
[321433164,1712185962146,-1705.78591477,0.00028999,5]
[321433165,1712185962248,-34.81195744,0.00028999,5]
[321433166,1712185978070,-888.71446159,0.00028999,5]
[321433167,1712185978172,-18.13702983,0.00028999,5]
[321433168,1712185996294,-888.71446159,0.00028999,5]
[321433169,1712185996351,-18.13702983,0.00028999,5]
[321433170,1712186014114,-888.71446159,0.00028999,5]
[321433171,1712186014216,-18.13702983,0.00028999,5]
[321433172,1712186032253,-888.71446159,0.00028999,5]
[321433173,1712186032296,-18.13702983,0.00028999,5]
[321433174,1712186048152,-888.71446159,0.00028999,5]
[321433175,1712186048443,-18.13702983,0.00028999,5]
[321433176,1712186070198,-888.71446159,0.00028999,5]
[321433177,1712186070295,-18.13702983,0.00028999,5]
[321433179,1712186088214,-888.71446159,0.00028999,5]
[321433180,1712186088321,-18.13702983,0.00028999,5]
[321433183,1712186104105,-888.71446159,0.00028999,5]
[321433184,1712186104208,-18.13702983,0.00028999,5]
[321433187,1712186128361,-888.71446159,0.00028999,5]
[321433188,1712186128402,-18.13702983,0.00028999,5]
[321433189,1712186150059,-888.71446159,0.00028999,5]
[321433190,1712186150173,-18.13702983,0.00028999,5]
[321433191,1712186166100,-443.37503382,0.00028999,5]
[321433192,1712186166203,-9.04847008,0.00028999,5]
[321433194,1712186401148,-439.10098945,0.00028999,2]
[321433195,1712186401218,-8.96124468,0.00028999,2]
[321433196,1712186424564,-264.08986139,0.00028999,7]
[321433197,1712186424589,-184.01597003,0.00029,7]
[321433198,1712186424668,-9.14501697,0.00029,7]
[321433199,1712186478519,-164.67288217,0.00028999,2]
[321433200,1712186478545,-153.67732601,0.00029,2]
[321433201,1712186478628,-6.49694302,0.00029,2]
[321433202,1712186480083,214.49073686,0.00028998,2]
[321433203,1712186773592,-459.59292339,0.00026899,2]
[321433204,1712186773691,-9.37944742,0.00026899,2]
[321433262,1712187032378,-354.82323027,0.00031898,7]
[321433263,1712187032389,-221.56051973,0.00031899,2]
[321433265,1712187032405,-247.41185108,0.00031899,2]
[321433268,1712187032415,-1399.14093614,0.00034999,4]
[321433270,1712187032428,-1126.2797205,0.00034999,4]
[321433314,1712187032981,-9.93834262,0.00034999,4]
[321433315,1712187032990,-157.00065209,0.00035,30]
[321433316,1712187033000,-1678.75807622,0.00035,2]
[321433317,1712187033013,-400.0,0.00037704,2]
[321433318,1712187033022,-400.0,0.00037704,2]
[321433319,1712187033032,-408.0,0.00037705,2]
[321433320,1712187033041,-14370.46776608,0.00037705,10]
[321433321,1712187033051,-211.101045,0.00038284,120]
[321433322,1712187033061,-241.708505,0.0003841,2]
[321433323,1712187033070,-253.074466,0.00038623,2]
[321433324,1712187033079,-1482.95123226,0.000389,9]
[321433325,1712187033090,-473.8032467,0.00039,30]
[321433326,1712187033099,-167.40447794,0.0004,4]
[321433327,1712187033108,-165.48599,0.0004,2]
[321433328,1712187033117,-496.50346298,0.0004,120]
[321433329,1712187033126,-3561.02576608,0.0004,4]
[321433330,1712187033135,-170.710275,0.00040216,2]
[321433331,1712187033146,-560.0,0.00040314,3]
[321433332,1712187033155,-400.0,0.00040314,5]
[321433333,1712187033164,-1276.1837461,0.0004049,2]
[321433334,1712187033173,-636.9490118,0.0004049,2]
[321433335,1712187033184,-189.7243479,0.0004049,2]
[321433336,1712187033194,-150.13803642,0.00040804,30]
[321433337,1712187033205,-158.76222105,0.00041083,30]
[321433338,1712187033214,-166.666666,0.00041096,2]
[321433339,1712187033223,-177.3236123,0.00041134,2]
[321433340,1712187033232,-500.0,0.00041421,7]
[321433341,1712187033242,-500.0,0.00041421,31]
[321433342,1712187033252,-500.0,0.00041421,7]
[321433343,1712187033262,-500.0,0.00041421,31]
[321433344,1712187033271,-500.0,0.00041421,7]
[321433345,1712187033282,-500.0,0.00041421,31]
[321433346,1712187033291,-500.0,0.00041421,7]
[321433347,1712187033300,-500.0,0.00041421,7]
[321433348,1712187033311,-500.0,0.00041421,31]
[321433349,1712187033321,-500.0,0.00041421,31]
[321433350,1712187033330,-500.0,0.00041421,31]
[321433351,1712187033340,-500.0,0.00041421,31]
[321433352,1712187033350,-500.0,0.00041421,7]
[321433353,1712187033359,-362.06352696,0.00041421,31]
[321433354,1712187033368,-500.0,0.00041421,7]
[321433355,1712187033377,-500.0,0.00041421,7]
[321433356,1712187033387,-500.0,0.00041421,7]
[321433357,1712187033398,-500.0,0.00041421,31]
[321433358,1712187033407,-500.0,0.00041421,7]
[321433359,1712187033416,-500.0,0.00041421,31]
[321433360,1712187033426,-273.48372728,0.00041421,7]
[321433361,1712187033436,-500.0,0.00041421,31]
[321433362,1712187033445,-500.0,0.00041421,31]
[321433363,1712187033454,-500.0,0.00041421,31]
[321433364,1712187033463,-502.5718756,0.00041422,2]
[321433365,1712187033472,-24900.0,0.00041422,2]
[321433366,1712187033481,-679.6440027,0.00041575,2]
[321433367,1712187033490,-200.0,0.00041675,2]
[321433368,1712187033500,-735.4951956,0.0004196,15]
[321433369,1712187033509,-150.13803642,0.00042,30]
[321433370,1712187033518,-166.666666,0.00042058,2]
[321433371,1712187033527,-150.13803642,0.00042144,30]
[321433372,1712187033536,-150.13803642,0.00042585,30]
[321433373,1712187033546,-166.666666,0.00043019,2]
[321433374,1712187033555,-783.0,0.00043104,3]
[321433375,1712187033564,-152.76127004,0.00043145,30]
[321433376,1712187033574,-679.64400266,0.00043406,2]
[321433377,1712187033583,-150.13803642,0.00043455,30]
[321433378,1712187033593,-158.76222105,0.00043505,30]
[321433379,1712187033603,-158.76222105,0.00043722,30]
[321433380,1712187033612,-150.13803642,0.00043977,30]
[321433381,1712187033621,-166.666666,0.00043981,2]
[321433382,1712187033632,-150.13803642,0.00044042,30]
[321433383,1712187033642,-152.76127004,0.00044046,30]
[321433384,1712187033651,-168.33333332,0.00044053,30]
[321433385,1712187033660,-150.13803642,0.00044073,30]
[321433386,1712187033669,-156.71110919,0.00044135,30]
[321433387,1712187033680,-152.76127004,0.00044153,30]
[321433388,1712187033689,-3967.15964084,0.00044359,120]
[321433389,1712187033699,-271.40992107,0.00044359,4]
[321433390,1712187033708,-150.13803642,0.00044378,30]
[321433391,1712187033717,-432.11883681,0.00044446,120]
[321433392,1712187033727,-500.0,0.00044446,120]
[321433393,1712187033736,-400.39398531,0.00044446,120]
[321433394,1712187033745,-359.7906435,0.00044446,120]
[321433395,1712187033754,-3824.0,0.00044447,30]
[321433396,1712187033763,-158.76222105,0.00044467,30]
[321433397,1712187033772,-211.101045,0.00044664,120]
[321433398,1712187033782,-152.76127004,0.00044687,30]
[321433399,1712187033791,-166.666666,0.00044942,2]
[321433400,1712187033800,-152.76127004,0.00045085,30]
[321433401,1712187033809,-168.840226,0.00045192,2]
[321433402,1712187033818,-679.64400266,0.00045236,2]
[321433403,1712187033828,-158.76222105,0.0004563,30]
[321433404,1712187033837,-166.666666,0.00045904,2]
[321433405,1712187033846,-1097.0,0.00046088,3]
[321433406,1712187033855,-150.13803642,0.00046109,30]
[321433407,1712187033864,-150.13803642,0.00046471,30]
[321433408,1712187033874,-933.87716819,0.00046547,4]
[321433409,1712187033882,-150.13803642,0.00046654,30]
[321433410,1712187033892,-150.13803642,0.00046661,30]
[321433411,1712187033901,-150.13803642,0.00046854,30]
[321433412,1712187033910,-720.6511446,0.0004688,120]
[321433413,1712187033919,-300.0,0.00047,25]
[321433414,1712187033928,-679.64400266,0.00047067,2]
[321433415,1712187033937,-162.7314773,0.00047209,3]
[321433416,1712187033947,-152.76127004,0.00047511,30]
[321433417,1712187033956,-280.51115178,0.00047686,4]
[321433418,1712187033965,-500.0,0.00047687,2]
[321433419,1712187033974,-5947.83637617,0.00047688,120]
[321433429,1712187038378,-500.0,0.00044446,120]
[321433430,1712187038387,-500.0,0.00044446,120]
[321433431,1712187038397,-500.0,0.00044446,120]
[321433432,1712187038406,-500.0,0.00044446,120]
[321433433,1712187038415,-171.86920899,0.00044446,120]
[321433434,1712187038425,-32201.97944106,0.00047688,120]
[321433435,1712187038434,-303.0,0.00047688,120]
[321433436,1712187038443,-301.0,0.00047688,120]
[321433437,1712187038452,-300.0,0.00047688,120]
[321433438,1712187038462,-150.13803642,0.00047736,30]
[321433439,1712187038472,-500.0,0.00047742,2]
[321433440,1712187038481,-500.0,0.00047797,2]
[321433441,1712187038490,-902.0,0.00047832,30]
[321433443,1712187038499,-500.0,0.00047852,2]
[321433445,1712187038508,-584.0,0.000479,30]
[321433446,1712187038517,-500.0,0.00047906,2]
[321433448,1712187038526,-389.89010704,0.00047961,2]
[321433450,1712187038536,-2739.33346428,0.00048,30]
[321433451,1712187038546,-175.054972,0.00048,7]
[321433452,1712187038557,-175.054972,0.00048,7]
[321433453,1712187038566,-151.0,0.00048,7]
[321433454,1712187038575,-151.0,0.00048,7]
[321433455,1712187038585,-234.11268,0.00048,7]
[321433456,1712187038595,-234.11268,0.00048,7]
[321433457,1712187038606,-2658.0289116,0.00048,30]
[321433458,1712187038615,-18733.91418594,0.00048,30]
[321433459,1712187038625,-165.48599,0.00048082,2]
[321433460,1712187038635,-151.00906054,0.00048283,2]
[321433461,1712187038646,-152.76127004,0.0004838,30]
[321433462,1712187038655,-200.70259025,0.00048458,2]
[321433463,1712187038665,-311.248409,0.000485,26]
[321433464,1712187038674,-164.892243,0.00048767,2]
[321433465,1712187038684,-679.64400266,0.00048897,2]
[321433466,1712187038693,-1500.0,0.00048899,2]
[321433467,1712187038702,-1459.25281368,0.000489,2]
[321433468,1712187038711,-900.0,0.0004897,35]
[321433469,1712187038721,-309.0,0.0004897,35]
[321433470,1712187038730,-900.0,0.0004898,35]
[321433471,1712187038742,-309.0,0.0004898,35]
[321433472,1712187038751,-900.0,0.0004899,35]
[321433473,1712187038760,-309.0,0.0004899,35]
[321433474,1712187038769,-210.0400474,0.00048997,4]
[321433475,1712187038778,-192.25327167,0.00048997,4]
[321433476,1712187038787,-305.31148423,0.00048997,4]
[321433477,1712187038797,-425.21255481,0.00048997,4]
[321433478,1712187038806,-1062.95629619,0.00048997,4]
[321433479,1712187038816,-382.58263311,0.00048997,2]
[321433480,1712187038826,-403.73257826,0.00048997,4]
[321433481,1712187038835,-1006.07823356,0.00048997,120]
[321433482,1712187038845,-477.65562487,0.00048997,4]
[321433483,1712187038854,-156.32317295,0.00048997,4]
[321433484,1712187038864,-389.30265262,0.00048997,4]
[321433485,1712187038874,-407.56553421,0.00048997,4]
[321433486,1712187038884,-312.0954563,0.00048997,4]
[321433487,1712187038894,-249.43221495,0.00048997,4]
[321433488,1712187038905,-260.95760401,0.00048997,4]
[321433489,1712187038915,-171.72340381,0.00048997,4]
[321433490,1712187038925,-520.18596634,0.00048997,2]
[321433491,1712187038935,-298.7134847,0.00048997,4]
[321433492,1712187038945,-170.48545562,0.00048997,4]
[321433493,1712187038955,-802.66865404,0.00048997,4]
[321433494,1712187038965,-828.33104674,0.00048997,4]
[321433495,1712187038974,-357.90112473,0.00048997,4]
[321433496,1712187038983,-22663.35878435,0.00048997,2]
[321433497,1712187038992,-151.0,0.00048997,7]
[321433498,1712187039001,-151.0,0.00048997,7]
[321433499,1712187039010,-175.054972,0.00048997,7]
[321433500,1712187039021,-175.054972,0.00048997,7]
[321433501,1712187039032,-151.0,0.00048997,7]
[321433502,1712187039043,-151.0,0.00048997,7]
[321433503,1712187039053,-234.11268,0.00048997,7]
[321433504,1712187039063,-234.11268,0.00048997,7]
[321433505,1712187039142,-151.0,0.00048997,7]
[321433506,1712187039166,-151.0,0.00048997,7]
[321433507,1712187039175,-151.0,0.00048997,7]
[321433508,1712187039185,-151.0,0.00048997,7]
[321433509,1712187039194,-151.0,0.00048997,7]
[321433510,1712187039204,-151.0,0.00048997,7]
[321433511,1712187039214,-818.50780496,0.00048998,4]
[321433512,1712187039224,-20851.98762454,0.00048999,3]
[321433513,1712187039236,-13499.31299483,0.00048999,30]
[321433514,1712187039250,-10957.80760447,0.00048999,30]
[321433515,1712187039263,-262.3827165,0.00048999,30]
[321433547,1712187046265,-15784.52232295,0.00035,2]
[321433548,1712187046277,-1305.7924886,0.00035,2]
[321433549,1712187046289,-22956.48355582,0.00035,2]
[321433550,1712187046299,-65785.53497419,0.00048999,30]
[321433551,1712187046311,-18807.57088372,0.00048999,30]
[321433626,1712188232486,-869.43619746,0.00037687,2]
[321433627,1712188232495,-1543.5081039,0.00038853,2]
[321433628,1712188232503,-400.0,0.00039069,3]
[321433629,1712188232512,-400.0,0.00039069,5]
[321433630,1712188232521,-512.68284729,0.0003907,2]
[321433631,1712188232532,-24387.31715271,0.0003907,2]
[321433632,1712188232542,-184.45296,0.00039511,2]
[321433634,1712188232550,-632.47180987,0.00039571,2]
[321433636,1712188232559,-167.771229,0.0004,2]
[321433638,1712188232569,-3561.02576608,0.0004,4]
[321433640,1712188232577,-1297.58232821,0.00040966,10]
[321433642,1712188232587,-173.18838868,0.00041522,2]
[321433644,1712188232596,-211.101045,0.00041622,120]
[321433646,1712188232605,-560.0,0.00041714,3]
[321433648,1712188232614,-166.666666,0.00041836,2]
[321433650,1712188232623,-5276.0,0.00042,30]
[321433652,1712188232632,-770.570992,0.00042479,2]
[321433653,1712188232641,-167.124604,0.00042537,2]
[321433655,1712188232650,-2338.5421962,0.00042597,2]
[321433656,1712188232660,-166.666666,0.00042976,2]
[321433657,1712188232669,-164.0007677,0.00043013,2]
[321433658,1712188232678,-173.18838867,0.00043367,2]
[321433659,1712188232686,-166.666666,0.00044117,2]
[321433660,1712188232695,-280.0,0.00044538,3]
[321433661,1712188232705,-585.94263636,0.00044998,7]
[321433662,1712188232714,-500.0,0.00044998,120]
[321433663,1712188232723,-206.89594744,0.00044998,120]
[321433664,1712188232732,-166.0,0.00045,2]
[321433665,1712188232741,-173.18838867,0.00045211,2]
[321433666,1712188232750,-166.666666,0.00045257,2]
[321433667,1712188232759,-227.74903814,0.00045542,2]
[321433668,1712188232767,-227.74903814,0.00046102,2]
[321433669,1712188232776,-166.666666,0.00046398,2]
[321433670,1712188232785,-1742.28787139,0.00046449,2]
[321433671,1712188232794,-171.59742228,0.00046548,120]
[321433672,1712188232803,-500.0,0.00046548,120]
[321433673,1712188232811,-301.5607627,0.00046548,120]
[321433674,1712188232820,-343.52604115,0.00046548,120]
[321433675,1712188232829,-45767.76956271,0.00046549,2]
[321433676,1712188232838,-227.74903814,0.00046661,2]
[321433677,1712188232847,-206.3241236,0.00046899,2]
[321433678,1712188232856,-165.0,0.00047,90]
[321433679,1712188232867,-173.18838867,0.00047056,2]
[321433680,1712188232876,-227.74903814,0.00047221,2]
[321433681,1712188232885,-166.666666,0.00047539,2]
[321433682,1712188232894,-227.74903814,0.0004778,2]
[321433683,1712188232904,-1330.0,0.00048,30]
[321433684,1712188232914,-9367.0,0.00048,30]
[321433685,1712188232923,-502.0,0.000483,30]
[321433686,1712188232933,-149.59476819,0.0004834,2]
[321433930,1712188466690,377.85,0.00012,7]
[321433931,1712188471303,2290.53751554,0.000205,5]
[321433932,1712188473059,2600.39681218,0.00021,7]
[321433933,1712188476729,-12000.0,0.0003,7]
[321433934,1712188476829,-8663.69801863,0.0003,7]
[321433935,1712188808877,-11248.90538668,0.0003,4]
[321433936,1712188809052,-229.56949769,0.0003,4]
[321433937,1712189184650,-328.63797496,0.000279,2]
[321433938,1712189184742,-6.70689745,0.000279,2]
[321433979,1712189432630,-335.34487241,0.000329,2]
[321433980,1712189432642,-163.3320402,0.0003893,2]
[321433981,1712189432653,-199.9647605,0.00038932,2]
[321433983,1712189432664,-400.0,0.00039031,3]
[321433985,1712189432676,-5502.06675899,0.00039032,2]
[321433996,1712189438670,-211.101045,0.00038932,120]
[321433997,1712189438682,-447.743955,0.00039032,2]
[321433998,1712189438693,-4109.03745558,0.00039032,2]
[321434080,1712189443721,-1615.50013244,0.00039032,2]
[321434081,1712189443732,-2178.80968554,0.00039032,2]
[321434092,1712189446728,-351.54912365,0.00039032,2]
[321434117,1712190631801,-155.16543819,0.0003698,2]
[321434118,1712190631811,-400.0,0.00037079,2]
[321434119,1712190631821,-217.0,0.0003708,2]
[321434121,1712190631830,-5967.11876884,0.0003708,2]
[321434128,1712190637828,-1257.43407453,0.0003708,2]
[321434580,1712190642983,-882.9672119,0.0003708,2]
[321442169,1712191832127,-217.00506439,0.00034174,4]
[321442170,1712191832136,-825.166491,0.00034175,2]
[321442171,1712191832145,-169.5457232,0.00034225,120]
[321442172,1712191832154,-400.0,0.00034301,2]
[321442173,1712191832162,-400.0,0.00034301,2]
[321442174,1712191832171,-126.17577113,0.00034302,2]
[321442175,1712191832182,-24773.82422887,0.00034302,2]
[321442176,1712191832191,-1302.75229422,0.00035025,7]
[321442177,1712191832201,-153.77056349,0.00035125,2]
[321442178,1712191832210,-909.42643187,0.00035218,2]
[321442179,1712191832219,-155.03564394,0.00035224,4]
[321442180,1712191832227,-2502.40248278,0.00035224,4]
[321442181,1712191832237,-379.82380626,0.00035224,7]
[321442182,1712191832246,-500.0,0.00035224,7]
[321442183,1712191832254,-231.28196175,0.00035224,7]
[321442184,1712191832264,-530.70307364,0.00035224,7]
[321442185,1712191832273,-24127.8855787,0.00035225,4]
[321442186,1712191832282,-203.97890923,0.00035225,7]